bitfinex/quotes_SOLUSD_20260310
["timestamp","ask_amount","ask_price","bid_price","bid_amount"]
[1773145224914,1.17742517,86.627,86.6,4.1015938]
[1773145225313,1.17742517,86.627,86.59,15.65023493]
[1773145225834,1.17742517,86.619,86.59,15.65023493]
[1773145226217,1.17742517,86.619,86.59,11.54864113]
[1773145226419,1.17742517,86.619,86.585,11.54921986]
[1773145226614,11.54494446,86.618,86.581,28.87438071]
[1773145226834,1.17742517,86.617,86.582,1.07553411]
[1773145227333,1.17742517,86.617,86.59,4.1015938]
[1773145229434,1.17742517,86.615,86.591,11.5485443]
[1773145230433,1.17742517,86.609,86.582,11.54974475]
[1773145233836,1.07779694,86.607,86.59,4.1015938]
[1773145234634,1.07779694,86.607,86.582,11.54974475]
[1773145234635,1.07779694,86.629,86.601,1.09096003]
[1773145235722,1.07779694,86.629,86.6,4.1015938]
[1773145235723,11.54361176,86.628,86.603,1.09096003]
[1773145236040,1.07779694,86.627,86.603,1.09096003]
[1773145237043,1.07779694,86.627,86.604,11.54681077]
[1773145237436,0.2,86.64,86.621,1.09096003]
[1773145238436,0.2,86.64,86.63,4.1015938]
[1773145238631,0.2,86.64,86.626,1.09096003]
[1773145238824,0.2,86.64,86.62,4.1015938]
[1773145239132,1.27779694,86.64,86.621,11.54454462]
[1773145239330,12.81992343,86.64,86.62,4.1015938]
[1773145239528,1.27779694,86.64,86.621,11.54454462]
[1773145239843,1.27779694,86.64,86.6,4.1015938]
[1773145239844,1.07779694,86.638,86.602,1.09096003]
[1773145240147,1.07779694,86.638,86.61,4.1015938]
[1773145241427,11.54241259,86.637,86.608,11.54627748]
[1773145241644,1.07779694,86.636,86.608,11.54627748]
[1773145243141,1.07779694,86.636,86.611,1.09096003]
[1773145243337,1.07779694,86.635,86.611,1.09096003]
[1773145243649,1.07779694,86.635,86.61,4.1015938]
[1773145245434,1.07779694,86.635,86.611,11.54587754]
[1773145246353,1.07779694,86.633,86.611,11.54587754]
[1773145246552,1.07779694,86.633,86.611,12.65828442]
[1773145251940,1.04517797,86.629,86.591,1.11240688]
[1773145255459,11.54361176,86.628,86.6,5.21400068]
[1773145255661,1.04517797,86.627,86.601,1.11240688]
[1773145256159,1.04517797,86.627,86.592,40.41943827]
[1773145256160,1.04517797,86.639,86.611,1.11240688]
[1773145256956,1.04517797,86.637,86.611,1.11240688]
[1773145257155,1.04517797,86.637,86.613,1.11240688]
[1773145258067,1.24517797,86.64,86.613,1.11240688]
[1773145258542,5.34677177,86.64,86.613,1.11240688]
[1773145258859,1.04517797,86.639,86.613,1.11240688]
[1773145259159,1.04517797,86.629,86.601,1.11240688]
[1773145259740,1.04517797,86.629,86.601,40.41523769]
[1773145259940,1.04517797,86.629,86.602,1.11240688]
[1773145261262,4.09708914,86.63,86.573,102.5]
[1773145261263,1.04517797,86.609,86.574,1.11240688]
[1773145261462,5.14226711,86.6,86.574,1.11240688]
[1773145261646,1.04517797,86.599,86.574,11.55081202]
[1773145262045,1.04517797,86.579,86.552,1.11240688]
[1773145263463,1.04517797,86.579,86.554,1.11240688]
[1773145265470,1.10967193,86.577,86.544,0.16266114]
[1773145265790,1.10967193,86.577,86.542,11.71774422]
[1773145265791,1.10967193,86.577,86.547,1.19368426]
[1773145266251,1.10967193,86.577,86.55,4.09708914]
[1773145266456,1.10967193,86.577,86.551,1.03102312]
[1773145266771,1.10967193,86.569,86.542,41.4738139]
[1773145267276,1.10967193,86.569,86.543,1.03102312]
[1773145268265,1.10967193,86.569,86.544,11.55481604]
[1773145268475,4.09708914,86.56,86.544,11.55481604]
[1773145268673,1.10967193,86.549,86.511,1.03102312]
[1773145268893,1.10967193,86.549,86.512,0.16266114]
[1773145269056,1.10967193,86.549,86.519,1.03102312]
[1773145269262,1.10967193,86.549,86.505,28.90006358]
[1773145269263,1.10967193,86.549,86.521,1.03102312]
[1773145270866,1.10967193,86.549,86.523,1.03102312]
[1773145271064,4.09708914,86.57,86.541,1.03102312]
[1773145271374,4.09708914,86.58,86.551,1.03102312]
[1773145271755,5.20676107,86.58,86.551,1.03102312]
[1773145271961,5.20676107,86.59,86.561,1.03102312]
[1773145272360,1.10967193,86.589,86.561,1.03102312]
[1773145273272,1.10967193,86.589,86.562,11.55241329]
[1773145273451,1.10967193,86.589,86.563,1.03102312]
[1773145275284,4.09708914,86.59,86.565,1.03102312]
[1773145276083,1.10967193,86.588,86.565,1.03102312]
[1773145276466,4.09708914,86.59,86.565,1.03102312]
[1773145276667,4.09708914,86.6,86.571,1.03102312]
[1773145277467,11.54658285,86.606,86.573,1.03102312]
[1773145278065,4.09708914,86.6,86.573,1.03102312]
[1773145278586,1.10967193,86.605,86.575,1.03102312]
[1773145278983,1.10967193,86.605,86.574,40.42784207]
[1773145278984,1.10967193,86.617,86.591,1.03102312]
[1773145279767,11.54521104,86.616,86.591,1.03102312]
[1773145279966,12.65488297,86.616,86.591,1.03102312]
[1773145280483,1.10967193,86.609,86.585,1.03102312]
[1773145280687,1.10967193,86.609,86.574,40.42784207]
[1773145280688,1.10967193,86.607,86.575,1.19368426]
[1773145281278,1.10967193,86.607,86.581,1.03102312]
[1773145283588,1.10967193,86.607,86.575,0.16266114]
[1773145283589,1.10967193,86.599,86.582,11.54974475]
[1773145286293,1.10967193,86.599,86.577,0.16266114]
[1773145286491,1.10967193,86.599,86.564,28.88008936]
[1773145286492,1.10967193,86.597,86.568,1.03102312]
[1773145287990,1.10967193,86.597,86.571,11.55121229]
[1773145290995,1.10967193,86.597,86.571,1.03102312]
[1773145291392,1.10967193,86.614,86.581,1.03102312]
[1773145291592,1.10967193,86.614,86.591,1.03102312]
[1773145292895,1.10967193,86.614,86.593,1.03102312]
[1773145293799,1.01902054,86.627,86.593,1.03102312]
[1773145293991,1.01902054,86.627,86.592,40.41943827]
[1773145293992,1.01902054,86.627,86.601,1.00650196]
[1773145294184,1.01902054,86.639,86.611,1.00650196]
[1773145294994,11.54227936,86.638,86.612,11.54574423]
[1773145295192,1.01902054,86.637,86.612,12.55224619]
[1773145297188,1.01902054,86.635,86.612,12.55224619]
[1773145298006,1.01902054,86.629,86.608,11.54621114]
[1773145298705,1.01902054,86.629,86.611,1.00650196]
[1773145299681,1.01902054,86.628,86.602,1.00650196]
[1773145300007,1.01902054,86.628,86.542,46.21981544]
[1773145300008,1.01902054,86.619,86.591,11.5485443]
[1773145301014,1.01902054,86.619,86.592,1.00650196]
[1773145301683,1.01902054,86.619,86.594,1.00650196]
[1773145303904,1.01902054,86.618,86.595,11.54801085]
[1773145305702,1.01902054,86.618,86.597,11.54774414]
[1773145305905,1.01902054,86.618,86.597,12.60901613]
[1773145306587,1.00176427,86.617,86.597,1.06127199]
[1773145306905,1.00176427,86.617,86.593,12.60948615]
[1773145307599,1.00176427,86.617,86.594,1.06127199]
[1773145308588,1.00176427,86.617,86.595,12.60928284]
[1773145309214,1.00176427,86.617,86.6,5.15836113]
[1773145309401,1.00176427,86.629,86.601,1.06127199]
[1773145309810,1.00176427,86.639,86.611,1.06127199]
[1773145310704,1.00176427,86.639,86.613,1.06127199]
[1773145311721,1.00176427,86.639,86.612,11.54574423]
[1773145311722,0.2,86.65,86.621,1.06127199]
[1773145312317,0.2,86.65,86.631,1.06127199]
[1773145312705,0.2,86.65,86.632,11.54307876]
[1773145312905,0.2,86.65,86.633,1.06127199]
[1773145315216,0.2,86.65,86.632,11.54307876]
[1773145315217,0.2,86.65,86.635,1.06127199]
[1773145315714,1.00176427,86.649,86.62,4.09708914]
[1773145315917,1.00176427,86.649,86.621,11.54454462]
[1773145316117,1.00176427,86.649,86.621,40.40590618]
[1773145317330,1.00176427,86.648,86.621,40.40590618]
[1773145317507,1.00176427,86.648,86.62,4.09708914]
[1773145317713,1.00176427,86.648,86.62,5.15836113]
[1773145317924,1.00176427,86.648,86.621,1.06127199]
[1773145319914,1.00176427,86.648,86.623,1.06127199]
[1773145321819,1.00176427,86.648,86.624,11.5441448]
[1773145322020,1.00176427,86.648,86.625,1.06127199]
[1773145322219,1.00176427,86.648,86.631,1.06127199]
[1773145322416,0.2,86.65,86.631,1.06127199]
[1773145324235,0.2,86.65,86.632,12.59658928]
[1773145325229,0.2,86.65,86.632,11.54307876]
[1773145325230,1.04972597,86.649,86.632,11.54307876]
[1773145325429,1.04972597,86.649,86.622,1.05351052]
[1773145326734,1.04972597,86.649,86.623,11.54427807]
[1773145326939,1.04972597,86.649,86.623,12.59778859]
[1773145327138,1.04972597,86.649,86.624,1.05351052]
[1773145329137,0.2,86.65,86.624,1.05351052]
[1773145329138,1.04972597,86.647,86.625,11.54401154]
[1773145331342,1.04972597,86.647,86.625,12.59752206]
[1773145331543,1.04972597,86.647,86.625,41.45755092]
[1773145331925,0.2,86.65,86.625,41.45755092]
[1773145331926,0.2,86.65,86.631,1.05351052]
[1773145332133,0.2,86.66,86.632,1.05351052]
[1773145332134,1.04972597,86.659,86.632,1.05351052]
[1773145332343,1.04972597,86.649,86.625,11.54401154]
[1773145333338,1.04972597,86.647,86.625,11.54401154]
[1773145334043,1.04972597,86.629,86.59,4.09486875]
[1773145334234,1.04972597,86.629,86.595,29.92330462]
[1773145334746,1.04972597,86.629,86.596,1.05351052]
[1773145335748,1.04972597,86.629,86.601,1.05351052]
[1773145337225,1.04972597,86.627,86.597,40.57976565]
[1773145337951,1.04972597,86.627,86.597,41.63327617]
[1773145338126,1.04972597,86.627,86.598,1.05351052]
[1773145338326,1.04972597,86.627,86.6,4.09486875]
[1773145339849,1.04972597,86.627,86.599,11.54747745]
[1773145340542,4.09486875,86.63,86.599,11.54747745]
[1773145340543,1.04972597,86.625,86.599,11.54747745]
[1773145340738,4.09486875,86.62,86.599,11.54747745]
[1773145341042,11.54387828,86.626,86.599,11.54747745]
[1773145341043,1.04972597,86.619,86.599,11.54747745]
[1773145342130,1.04972597,86.619,86.593,11.54827757]
[1773145346048,1.04972597,86.617,86.593,11.54827757]
[1773145349477,1.04972597,86.624,86.601,1.05351052]
[1773145351345,1.04972597,86.624,86.574,57.7537316]
[1773145351346,1.04972597,86.637,86.61,4.09486875]
[1773145351669,1.04972597,86.649,86.62,4.09486875]
[1773145351855,1.04972597,86.648,86.621,1.05351052]
[1773145353862,4.29486875,86.66,86.631,1.04101944]
[1773145353863,11.54011414,86.655,86.631,1.04101944]
[1773145354062,0.9918951,86.654,86.623,1.04101944]
[1773145355871,0.9918951,86.654,86.631,1.04101944]
[1773145356358,0.9918951,86.654,86.632,11.54307876]
[1773145357176,28.84560037,86.669,86.632,11.54307876]
[1773145357177,0.9918951,86.669,86.641,1.04101944]
[1773145357365,0.9918951,86.668,86.636,0.16266114]
[1773145357550,0.9918951,86.668,86.634,1.04101944]
[1773145357751,0.9918951,86.668,86.641,1.04101944]
[1773145358774,0.9918951,86.668,86.642,11.54174649]
[1773145359873,0.9918951,86.668,86.643,1.04101944]
[1773145360262,0.9918951,86.666,86.642,11.54174649]
[1773145360957,0.9918951,86.666,86.64,1.04101944]
[1773145361163,0.9918951,86.666,86.641,1.04101944]
[1773145361565,4.29486875,86.67,86.641,1.04101944]
[1773145361768,0.9918951,86.669,86.641,1.04101944]
[1773145362358,0.2,86.67,86.641,1.04101944]
[1773145362876,0.9918951,86.669,86.641,1.04101944]
[1773145363074,0.9918951,86.669,86.64,4.09486875]
[1773145363075,0.9918951,86.669,86.643,1.04101944]
[1773145363374,0.9918951,86.669,86.642,11.54174649]
[1773145363556,0.9918951,86.669,86.642,12.58276593]
[1773145364974,0.9918951,86.668,86.642,11.54174649]
[1773145365172,5.08676385,86.66,86.639,0.16266114]
[1773145365374,0.9918951,86.659,86.639,0.16266114]
[1773145365577,0.9918951,86.659,86.638,11.54227936]
[1773145365772,0.9918951,86.649,86.618,29.90309466]
[1773145365978,0.9918951,86.649,86.62,0.16266114]
[1773145366762,0.9918951,86.649,86.62,0.98196613]
[1773145368265,0.9918951,86.649,86.621,11.54454462]
[1773145368465,0.9918951,86.649,86.622,0.98196613]
[1773145370482,0.9918951,86.649,86.624,0.98196613]
[1773145373185,0.9918951,86.649,86.631,0.98196613]
[1773145373585,4.09486875,86.66,86.631,0.98196613]
[1773145373782,0.2,86.67,86.631,0.98196613]
[1773145373783,1.06973107,86.659,86.631,0.98196613]
[1773145373973,1.06973107,86.659,86.641,0.98196613]
[1773145374579,1.06973107,86.665,86.641,0.98196613]
[1773145375289,1.06973107,86.665,86.642,11.54174649]
[1773145375488,1.06973107,86.665,86.643,0.98196613]
[1773145377290,1.06973107,86.665,86.644,11.54148007]
[1773145378994,12.60844387,86.665,86.644,11.54148007]
[1773145379192,1.06973107,86.664,86.644,11.54148007]
[1773145379389,1.06973107,86.659,86.639,0.98196613]
[1773145379590,0.2,86.67,86.64,4.25752989]
[1773145379890,15.83297979,86.67,86.641,0.98196613]
[1773145380071,4.09486875,86.66,86.638,11.54227936]
[1773145380276,4.09486875,86.66,86.637,0.98196613]
[1773145381690,1.06973107,86.659,86.637,12.5243409]
[1773145381872,1.06973107,86.659,86.638,0.98196613]
[1773145383475,1.06973107,86.666,86.638,0.98196613]
[1773145383895,1.06973107,86.666,86.639,11.54214614]
[1773145384075,1.06973107,86.666,86.64,1.07778135]
[1773145384678,4.29374456,86.67,86.641,1.07778135]
[1773145384679,0.2,86.67,86.641,1.07778135]
[1773145384894,0.2,86.67,86.651,1.07778135]
[1773145387196,1.07448137,86.668,86.645,1.07778135]
[1773145387781,1.07448137,86.659,86.637,0.16266114]
[1773145387975,1.07448137,86.659,86.64,1.07778135]
[1773145388585,1.07448137,86.659,86.641,12.61966106]
[1773145388788,1.07448137,86.659,86.642,1.07778135]
[1773145388987,0.2,86.67,86.642,1.07778135]
[1773145389193,4.29374456,86.68,86.661,1.07778135]
[1773145389194,0.2,86.68,86.661,1.07778135]
[1773145389590,4.29374456,86.68,86.661,1.07778135]
[1773145389795,1.07448137,86.679,86.661,1.07778135]
[1773145390298,0.2,86.68,86.661,1.07778135]
[1773145391398,0.2,86.68,86.663,1.07778135]
[1773145392204,16.90362229,86.69,86.662,11.53908287]
[1773145392205,0.2,86.69,86.664,1.07778135]
[1773145392687,0.2,86.69,86.671,1.07778135]
[1773145393188,0.2,86.69,86.67,4.09374456]
[1773145393189,1.07448137,86.699,86.673,1.07778135]
[1773145395191,4.29374456,86.7,86.673,1.07778135]
[1773145395391,4.29374456,86.7,86.675,1.07778135]
[1773145395888,1.07448137,86.699,86.675,1.07778135]
[1773145396289,4.29374456,86.7,86.677,1.07778135]
[1773145396907,5.36822593,86.71,86.681,1.07778135]
[1773145397206,1.07448137,86.709,86.681,1.07778135]
[1773145397989,5.16822593,86.7,86.681,1.07778135]
[1773145398195,1.07448137,86.699,86.681,1.07778135]
[1773145398498,1.07448137,86.689,86.672,11.53762049]
[1773145398911,1.07448137,86.695,86.672,11.53762049]
[1773145399709,1.07448137,86.695,86.672,40.38199929]
[1773145400510,1.07448137,86.695,86.672,41.45978064]
[1773145400808,11.53482363,86.694,86.673,1.07778135]
[1773145401005,1.07448137,86.694,86.673,1.07778135]
[1773145402398,1.07448137,86.694,86.674,11.53748528]
[1773145402916,1.07448137,86.689,86.663,12.61673107]
[1773145403609,4.09374456,86.68,86.663,1.07778135]
[1773145403915,4.09374456,86.68,86.627,3.69383402]
[1773145403916,1.07448137,86.669,86.637,1.07778135]
[1773145404106,4.09374456,86.66,86.64,1.07778135]
[1773145404311,1.07448137,86.661,86.641,11.54187971]
[1773145404611,1.07448137,86.661,86.642,1.07778135]
[1773145405924,3.69383402,86.705,86.637,11.54241259]
[1773145405925,1.07448137,86.659,86.637,11.54241259]
[1773145406118,4.09374456,86.66,86.63,11.54334526]
[1773145406119,1.07448137,86.649,86.63,11.54334526]
[1773145406503,1.07448137,86.649,86.627,1.07778135]
[1773145406705,1.07448137,86.649,86.629,1.07778135]
[1773145406905,15.63309374,86.66,86.63,1.07778135]
[1773145407112,1.07448137,86.666,86.631,1.07778135]
[1773145407502,1.07448137,86.665,86.631,1.07778135]
[1773145408920,1.07448137,86.665,86.634,1.24044249]
[1773145412914,1.07448137,86.665,86.638,0.16266114]
[1773145413110,1.07448137,86.665,86.641,1.07778135]
[1773145413328,1.07448137,86.679,86.641,1.07778135]
[1773145414821,0.9889336,86.678,86.641,1.07778135]
[1773145415018,28.83939858,86.687,86.643,1.07459971]
[1773145415019,0.9889336,86.676,86.643,1.07459971]
[1773145415213,4.09374456,86.67,86.643,1.07459971]
[1773145415412,5.08267816,86.67,86.643,1.07459971]
[1773145416326,0.9889336,86.669,86.643,1.07459971]
[1773145417216,0.9889336,86.669,86.645,1.07459971]
[1773145418829,4.09374456,86.67,86.645,1.07459971]
[1773145419928,4.09374456,86.67,86.644,40.39518026]
[1773145419929,4.09374456,86.67,86.647,1.07459971]
[1773145422138,4.09374456,86.67,86.648,11.54094728]
[1773145422433,0.9889336,86.669,86.649,1.07459971]
[1773145422937,103.9,86.734,86.651,1.07459971]
[1773145422938,4.09374456,86.68,86.651,1.07459971]
[1773145423110,0.9889336,86.681,86.651,1.07459971]
[1773145423918,0.9889336,86.679,86.651,1.07459971]
[1773145424335,0.9889336,86.677,86.652,11.54041453]
[1773145424911,0.9889336,86.677,86.65,1.23726085]
[1773145425234,0.9889336,86.669,86.649,0.16266114]
[1773145425815,0.9889336,86.669,86.645,11.54134687]
[1773145426017,0.9889336,86.669,86.645,12.61594658]
[1773145426218,0.9889336,86.669,86.646,1.07459971]
[1773145427923,0.99513203,86.667,86.647,11.54108047]
[1773145428822,11.53828402,86.668,86.643,0.97901452]
[1773145428823,4.09374456,86.66,86.643,0.97901452]
[1773145429327,0.99513203,86.662,86.643,0.97901452]
[1773145430327,0.99513203,86.662,86.644,11.54148007]
[1773145431439,0.99513203,86.662,86.644,12.52049459]
[1773145431622,0.99513203,86.662,86.645,0.97901452]
[1773145434542,0.99513203,86.662,86.647,0.97901452]
[1773145435521,0.99513203,86.669,86.647,0.97901452]
[1773145436836,0.99513203,86.669,86.649,0.97901452]
[1773145437238,0.99513203,86.667,86.649,0.97901452]
[1773145443328,0.99513203,86.667,86.65,11.5406809]
[1773145443527,0.99513203,86.667,86.651,0.97901452]
[1773145445553,0.99513203,86.667,86.647,1.05624319]
[1773145446543,0.99513203,86.667,86.648,11.54094728]
[1773145446953,0.97201556,86.665,86.647,1.05624319]
[1773145447450,0.97201556,86.665,86.648,12.59719047]
[1773145448765,0.97201556,86.669,86.648,1.05624319]
[1773145449166,4.09382792,86.66,86.648,1.05624319]
[1773145449342,0.97201556,86.662,86.648,1.05624319]
[1773145449938,0.97201556,86.662,86.648,12.59717638]
[1773145451651,0.97201556,86.662,86.643,28.85383115]
[1773145451652,0.97201556,86.662,86.643,12.59774474]
[1773145451949,0.97201556,86.659,86.639,11.54214614]
[1773145452137,0.97201556,86.659,86.639,12.59838933]
[1773145452336,0.97201556,86.659,86.64,1.05624319]
[1773145454851,0.97201556,86.659,86.641,11.54187971]
[1773145455062,0.97201556,86.659,86.642,1.05624319]
[1773145456860,0.97201556,86.659,86.644,1.05624319]
[1773145460363,0.97201556,86.659,86.616,57.72574711]
[1773145460364,0.97201556,86.649,86.618,1.05624319]
[1773145460559,4.09382792,86.64,86.619,0.16266114]
[1773145460767,0.97201556,86.645,86.62,1.05624319]
[1773145460956,0.97201556,86.65,86.621,1.05624319]
[1773145464451,0.97201556,86.649,86.623,1.05624319]
[1773145465570,0.97201556,86.648,86.623,1.05624319]
[1773145466772,0.97201556,86.639,86.613,1.05624319]
[1773145466968,0.97201556,86.639,86.611,40.4105714]
[1773145466969,0.97201556,86.629,86.611,11.54587754]
[1773145467152,0.97201556,86.629,86.612,1.05624319]
[1773145468162,4.09382792,86.64,86.603,11.5469441]
[1773145468163,4.09382792,86.62,86.603,11.5469441]
[1773145468477,0.97201556,86.619,86.603,11.5469441]
[1773145469481,0.97201556,86.609,86.589,11.54881104]
[1773145469859,0.97201556,86.609,86.59,0.16266114]
[1773145470081,0.97201556,86.609,86.59,1.21890433]
[1773145470461,4.09382792,86.61,86.59,1.21890433]
[1773145471776,0.97201556,86.615,86.592,1.05624319]
[1773145472170,4.09382792,86.62,86.592,1.05624319]
[1773145472677,0.97201556,86.621,86.592,1.05624319]
[1773145473784,4.09382792,86.63,86.601,1.03310651]
[1773145474074,4.09382792,86.65,86.621,1.03310651]
[1773145475177,4.09382792,86.66,86.631,1.03310651]
[1773145475872,1.00566061,86.658,86.631,1.03310651]
[1773145476365,4.09382792,86.65,86.631,1.03310651]
[1773145476673,4.09382792,86.65,86.628,11.54348352]
[1773145476674,1.00566061,86.649,86.628,11.54348352]
[1773145477081,4.09382792,86.65,86.629,1.03310651]
[1773145478878,1.00566061,86.648,86.625,12.57699797]
[1773145479583,1.00566061,86.648,86.625,11.54389146]
[1773145480184,4.09382792,86.64,86.625,11.54389146]
[1773145480385,5.09948853,86.64,86.625,11.54389146]
[1773145480988,5.09948853,86.64,86.621,1.03310651]
[1773145481167,5.09948853,86.64,86.622,11.54441135]
[1773145481685,1.00566061,86.629,86.59,15.64250559]
[1773145481870,1.00566061,86.629,86.591,1.03310651]
[1773145482187,1.00566061,86.629,86.597,1.03310651]
[1773145482380,1.00566061,86.627,86.6,1.19576765]
[1773145483779,1.00566061,86.627,86.601,11.54721077]
[1773145483980,1.00566061,86.627,86.602,1.03310651]
[1773145486189,1.00566061,86.627,86.603,11.5469441]
[1773145486390,1.00566061,86.627,86.604,0.96199195]
[1773145487391,28.85270118,86.647,86.604,0.96199195]
[1773145487392,0.98731415,86.637,86.604,0.96199195]
[1773145488275,0.98731415,86.637,86.606,0.96199195]
[1773145489083,0.98731415,86.637,86.605,11.54667744]
[1773145489084,0.98731415,86.629,86.605,11.54667744]
[1773145489286,4.09382792,86.62,86.602,0.96199195]
[1773145489592,5.08114207,86.62,86.602,0.96199195]
[1773145489975,0.98731415,86.619,86.602,0.96199195]
[1773145490789,0.98731415,86.619,86.597,12.50970626]
[1773145490980,0.98731415,86.619,86.597,11.54771431]
[1773145491788,0.98731415,86.617,86.597,0.96199195]
[1773145492677,0.98731415,86.619,86.597,0.96199195]
[1773145493885,0.98731415,86.619,86.598,12.50960274]
[1773145494278,0.98731415,86.619,86.599,0.96199195]
[1773145495086,4.09382792,86.61,86.594,0.96199195]
[1773145495286,0.98731415,86.617,86.594,0.96199195]
[1773145496372,4.09382792,86.61,86.594,0.96199195]
[1773145496883,0.98731415,86.609,86.594,0.96199195]
[1773145497995,4.09382792,86.61,86.595,11.54801085]
[1773145499694,12.53345831,86.609,86.589,0.96199195]
[1773145499900,5.08114207,86.6,86.581,0.96199195]
[1773145500496,0.98731415,86.608,86.581,0.96199195]
[1773145500984,0.98731415,86.608,86.582,0.96199195]
[1773145501988,0.98731415,86.608,86.584,0.96199195]
[1773145502393,5.08114207,86.6,86.584,0.96199195]
[1773145503802,11.54633927,86.608,86.574,11.55070868]
[1773145503803,0.97355513,86.589,86.574,11.55070868]
[1773145504297,4.09382792,86.59,86.566,0.96478792]
[1773145504298,0.97355513,86.587,86.566,0.96478792]
[1773145504505,0.97355513,86.579,86.56,1.06478792]
[1773145505296,0.97355513,86.569,86.547,0.96478792]
[1773145505597,4.10352169,86.56,86.547,0.96478792]
[1773145506015,0.97355513,86.569,86.552,0.96478792]
[1773145507398,0.97355513,86.569,86.553,12.51840246]
[1773145509517,4.10352169,86.6,86.553,11.55361454]
[1773145509698,4.10352169,86.57,86.554,0.96478792]
[1773145510817,0.97355513,86.579,86.554,0.96478792]
[1773145510988,4.10352169,86.58,86.554,0.96478792]
[1773145514705,11.54903751,86.588,86.556,0.96478792]
[1773145514907,0.97355513,86.587,86.556,0.96478792]
[1773145516525,0.97355513,86.587,86.558,0.96478792]
[1773145516717,4.10352169,86.59,86.561,0.96478792]
[1773145517816,15.65223663,86.59,86.562,11.55241329]
[1773145518019,15.65223663,86.59,86.563,0.96478792]
[1773145518422,0.97355513,86.605,86.564,0.96478792]
[1773145518610,0.97355513,86.605,86.562,40.43344653]
[1773145518611,0.97355513,86.605,86.581,0.96478792]
[1773145518813,4.10352169,86.6,86.581,0.96478792]
[1773145519521,0.97355513,86.599,86.581,0.96478792]
[1773145521516,0.97355513,86.599,86.572,0.96478792]
[1773145523209,0.97355513,86.597,86.572,0.96478792]
[1773145524102,0.97355513,86.589,86.562,0.96478792]
[1773145524305,0.97355513,86.579,86.563,11.55227984]
[1773145525007,0.97355513,86.579,86.563,12.51706776]
[1773145525323,4.10352169,86.58,86.564,0.96478792]
[1773145525632,0.97355513,86.58,86.564,0.96478792]
[1773145525812,5.07707682,86.59,86.564,0.96478792]
[1773145526408,0.97355513,86.589,86.566,0.96478792]
[1773145530629,4.10352169,86.59,86.568,0.96478792]
[1773145533530,0.99587984,86.604,86.572,0.16266114]
[1773145533712,0.99587984,86.604,86.581,0.98078522]
[1773145534526,11.54575397,86.612,86.581,0.98078522]
[1773145534527,0.99587984,86.609,86.581,0.98078522]
[1773145534725,0.99587984,86.624,86.601,0.98078522]
[1773145535629,0.99587984,86.624,86.59,4.10352169]
[1773145535630,0.99587984,86.623,86.602,12.52786265]
[1773145536630,0.99587984,86.619,86.602,11.54707743]
[1773145536837,0.99587984,86.619,86.597,0.98078522]
[1773145537436,0.99587984,86.619,86.601,0.98078522]
[1773145538937,0.99587984,86.639,86.603,0.98078522]
[1773145539234,0.99587984,86.638,86.603,0.98078522]
[1773145540330,0.99587984,86.636,86.603,0.98078522]
[1773145540531,0.99587984,86.636,86.605,0.98078522]
[1773145542938,4.10352169,86.63,86.605,0.98078522]
[1773145543244,0.99587984,86.629,86.605,0.98078522]
[1773145545039,0.99587984,86.629,86.607,0.98078522]
[1773145545238,0.99587984,86.638,86.611,0.98078522]
[1773145545737,3.69383402,86.664,86.621,0.98078522]
[1773145545738,11.54154193,86.644,86.621,0.98078522]
[1773145546127,0.99587984,86.643,86.621,0.98078522]
[1773145549020,11.54174649,86.642,86.621,0.98078522]
[1773145549821,11.54174649,86.642,86.584,57.74681915]
[1773145549822,1.00178122,86.641,86.611,0.94475945]
[1773145550626,1.00178122,86.641,86.621,0.94475945]
[1773145552232,11.54201292,86.64,86.621,0.94475945]
[1773145553128,12.54379414,86.64,86.621,0.94475945]
[1773145554655,1.00178122,86.649,86.621,0.94475945]
[1773145555249,11.54081408,86.649,86.622,11.54441135]
[1773145555444,1.00178122,86.648,86.621,0.94475945]
[1773145555761,1.00178122,86.639,86.616,0.94475945]
[1773145556054,1.00178122,86.637,86.614,11.54543119]
[1773145556248,1.00178122,86.637,86.606,28.86609658]
[1773145556249,1.00178122,86.637,86.606,11.54646024]
[1773145557138,1.00178122,86.637,86.606,12.49121969]
[1773145557359,1.00178122,86.635,86.606,12.49121969]
[1773145558553,1.00178122,86.633,86.606,12.49121969]
[1773145560534,1.00178122,86.633,86.57,102.5]
[1773145560535,1.00178122,86.629,86.591,0.94475945]
[1773145560742,1.00178122,86.629,86.6,5.04828114]
[1773145560942,1.00178122,86.629,86.601,0.94475945]
[1773145562938,1.00178122,86.627,86.603,0.94475945]
[1773145564552,1.0355485,86.639,86.611,1.03478463]
[1773145565337,1.0355485,86.639,86.576,92.40373962]
[1773145565338,1.0355485,86.659,86.631,1.03478463]
[1773145566654,4.09458716,86.65,86.62,4.09458716]
[1773145566859,1.0355485,86.649,86.62,4.09458716]
[1773145567555,1.0355485,86.647,86.62,4.09458716]
[1773145568058,1.0355485,86.647,86.621,11.54454462]
[1773145568645,1.0355485,86.647,86.622,1.03478463]
[1773145569558,1.0355485,86.645,86.622,1.03478463]
[1773145570850,1.0355485,86.645,86.624,1.03478463]
[1773145572767,1.0355485,86.643,86.624,1.03478463]
[1773145574165,1.0355485,86.658,86.631,1.03478463]
[1773145575046,1.0355485,86.656,86.631,1.03478463]